[Event "*** SCC Grand Prix: Titled Tuesday Blitz"]
[Site "Chess.com"]
[Date "2020.06.09"]
[Round "10"]
[White "UCantHandleDenker"]
[Black "bazar-wokzal"]
[Result "1-0"]
[WhiteElo "2520"]
[BlackElo "2388"]
[TimeControl "180+1"]
[EndTime "10:58:47 PDT"]
[Termination "UCantHandleDenker won by resignation"]

1. Nf3 {[%clk 0:02:59.5]} 1... f5 {[%clk 0:02:58.9]} 2. g3 {[%clk 0:02:59.2]}
2... Nf6 {[%clk 0:02:58.3]} 3. Bg2 {[%clk 0:02:59.1]} 3... d6 {[%clk 0:02:58.5]}
4. O-O {[%clk 0:02:58.4]} 4... e5 {[%clk 0:02:58.2]} 5. d3 {[%clk 0:02:58.7]}
5... Nc6 {[%clk 0:02:56.1]} 6. c4 {[%clk 0:02:58]} 6... h6 {[%clk 0:02:55.8]} 7.
Nc3 {[%clk 0:02:57.5]} 7... g5 {[%clk 0:02:56]} 8. Rb1 {[%clk 0:02:57.3]} 8...
Bg7 {[%clk 0:02:55.2]} 9. b4 {[%clk 0:02:55.8]} 9... O-O {[%clk 0:02:55.2]} 10.
b5 {[%clk 0:02:55.5]} 10... Ne7 {[%clk 0:02:55.4]} 11. a4 {[%clk 0:02:55.7]}
11... Ng6 {[%clk 0:02:41.6]} 12. e3 {[%clk 0:02:46.8]} 12... f4 {[%clk
0:02:39.8]} 13. exf4 {[%clk 0:02:46]} 13... exf4 {[%clk 0:02:39.5]} 14. Re1
{[%clk 0:02:36]} 14... g4 {[%clk 0:02:37.7]} 15. Nd2 {[%clk 0:02:35]} 15... f3
{[%clk 0:02:37.9]} 16. Bf1 {[%clk 0:02:34.4]} 16... Bf5 {[%clk 0:02:33.8]} 17.
Bb2 {[%clk 0:02:31.2]} 17... h5 {[%clk 0:02:22.9]} 18. Nde4 {[%clk 0:02:29.1]}
18... h4 {[%clk 0:02:16.5]} 19. Qd2 {[%clk 0:02:23.9]} 19... Nxe4 {[%clk
0:01:53.8]} 20. Nxe4 {[%clk 0:02:06.5]} 20... Re8 {[%clk 0:01:21.7]} 21. Bxg7
{[%clk 0:01:40.7]} 21... Kxg7 {[%clk 0:01:21.3]} 22. Qc3+ {[%clk 0:01:41]} 22...
Kf7 {[%clk 0:01:18.6]} 23. Qd4 {[%clk 0:01:23.9]} 23... Re5 {[%clk 0:01:02.4]}
24. Re3 {[%clk 0:01:19.6]} 24... b6 {[%clk 0:00:55]} 25. Rbe1 {[%clk 0:01:18.2]}
25... Qe7 {[%clk 0:00:50.7]} 26. Nc3 {[%clk 0:01:14.5]} 26... Re8 {[%clk
0:00:48.8]} 27. Nd5 {[%clk 0:01:13.1]} 27... Qd8 {[%clk 0:00:44.6]} 28. Nf4
{[%clk 0:01:04.7]} 28... hxg3 {[%clk 0:00:42.2]} 29. hxg3 {[%clk 0:01:02.2]}
29... Rxe3 {[%clk 0:00:34.3]} 30. Rxe3 {[%clk 0:01:01]} 30... Rxe3 {[%clk
0:00:34]} 31. Qxe3 {[%clk 0:00:57.3]} 31... Qg5 {[%clk 0:00:29.6]} 32. Nd5
{[%clk 0:00:41.1]} 32... Qxe3 {[%clk 0:00:28.4]} 33. fxe3 {[%clk 0:00:41.1]}
33... Ne5 {[%clk 0:00:25.6]} 34. e4 {[%clk 0:00:40.2]} 34... Be6 {[%clk
0:00:20.4]} 35. Nxc7 {[%clk 0:00:39.6]} 35... Ke7 {[%clk 0:00:20.7]} 36. Kf2
{[%clk 0:00:36.5]} 36... Kd7 {[%clk 0:00:20.8]} 37. Nxe6 {[%clk 0:00:34.2]}
37... Kxe6 {[%clk 0:00:20.6]} 38. d4 {[%clk 0:00:30.3]} 38... Nd7 {[%clk
0:00:20.1]} 39. Ke3 {[%clk 0:00:29.9]} 39... Kf6 {[%clk 0:00:17.3]} 40. Kf4
{[%clk 0:00:28.8]} 40... f2 {[%clk 0:00:17.5]} 41. Kxg4 {[%clk 0:00:27.5]} 41...
Kg6 {[%clk 0:00:17.1]} 42. Kf3 {[%clk 0:00:25.7]} 42... Nf6 {[%clk 0:00:17.8]}
43. Bd3 {[%clk 0:00:24.8]} 43... Kg5 {[%clk 0:00:18]} 44. Kxf2 {[%clk 0:00:24]}
44... Kg4 {[%clk 0:00:18.2]} 45. e5 {[%clk 0:00:21.9]} 45... dxe5 {[%clk
0:00:18.3]} 46. dxe5 {[%clk 0:00:22.1]} 46... Nd7 {[%clk 0:00:17.2]} 47. e6
{[%clk 0:00:21.3]} 47... Nf6 {[%clk 0:00:17]} 48. Bg6 {[%clk 0:00:15.2]} 48...
Kg5 {[%clk 0:00:16.9]} 49. Bf7 {[%clk 0:00:14.9]} 49... Ng4+ {[%clk 0:00:13.6]}
50. Ke2 {[%clk 0:00:12.9]} 50... Kf6 {[%clk 0:00:13.2]} 51. Kf3 {[%clk
0:00:12.1]} 51... Ne5+ {[%clk 0:00:13.1]} 52. Ke4 {[%clk 0:00:11.6]} 52... Nxc4
{[%clk 0:00:13.7]} 53. Kd5 {[%clk 0:00:11.9]} 53... Nb2 {[%clk 0:00:12.1]} 54.
Kd6 {[%clk 0:00:11.9]} 54... Nxa4 {[%clk 0:00:12.2]} 55. g4 {[%clk 0:00:07]}
55... Nc3 {[%clk 0:00:10.6]} 56. g5+ {[%clk 0:00:06.4]} 56... Kxg5 {[%clk
0:00:10.5]} 57. e7 {[%clk 0:00:06.6]} 57... Nxb5+ {[%clk 0:00:10.5]} 58. Kd7
{[%clk 0:00:05.8]} 58... Kf6 {[%clk 0:00:07.8]} 59. e8=Q {[%clk 0:00:05.4]}
59... Nd4 {[%clk 0:00:07.4]} 60. Qe7+ {[%clk 0:00:04.8]} 60... Kf5 {[%clk
0:00:07.6]} 61. Bd5 {[%clk 0:00:05.2]} 61... b5 {[%clk 0:00:04.8]} 62. Qe4+
{[%clk 0:00:05.2]} 1-0

[Event "*** SCC Grand Prix: Titled Tuesday Blitz"]
[Site "Chess.com"]
[Date "2020.06.09"]
[Round "10"]
[White "louis198"]
[Black "GMKrikor"]
[Result "1/2-1/2"]
[WhiteElo "2482"]
[BlackElo "2720"]
[TimeControl "180+1"]
[EndTime "10:58:49 PDT"]
[Termination "Game drawn - insufficient material"]

1. d4 {[%clk 0:03:00.9]} 1... Nf6 {[%clk 0:02:59.9]} 2. Bf4 {[%clk 0:03:00.9]}
2... c5 {[%clk 0:02:59.3]} 3. e3 {[%clk 0:03:00.3]} 3... g6 {[%clk 0:02:59]} 4.
Nf3 {[%clk 0:02:59.1]} 4... Bg7 {[%clk 0:02:58.4]} 5. Nbd2 {[%clk 0:02:57.6]}
5... d6 {[%clk 0:02:52.9]} 6. h3 {[%clk 0:02:57.5]} 6... O-O {[%clk 0:02:51.6]}
7. c3 {[%clk 0:02:57.5]} 7... cxd4 {[%clk 0:02:50.5]} 8. cxd4 {[%clk 0:02:57]}
8... Nc6 {[%clk 0:02:50.9]} 9. Bc4 {[%clk 0:02:56.2]} 9... e5 {[%clk 0:02:51.3]}
10. dxe5 {[%clk 0:02:55.8]} 10... dxe5 {[%clk 0:02:51.6]} 11. Bh2 {[%clk
0:02:50.2]} 11... Qe7 {[%clk 0:02:44.6]} 12. O-O {[%clk 0:02:23.8]} 12... e4
{[%clk 0:02:22.8]} 13. Ne1 {[%clk 0:02:21.9]} 13... Ne5 {[%clk 0:02:19.1]} 14.
Nc2 {[%clk 0:02:11.1]} 14... b6 {[%clk 0:02:14.3]} 15. Nd4 {[%clk 0:02:09.9]}
15... Bb7 {[%clk 0:02:03.5]} 16. Qe2 {[%clk 0:02:07.5]} 16... Nxc4 {[%clk
0:02:02]} 17. Nxc4 {[%clk 0:02:06.3]} 17... Rfd8 {[%clk 0:02:02.3]} 18. a4
{[%clk 0:02:05.2]} 18... Rac8 {[%clk 0:02:01.2]} 19. Rfc1 {[%clk 0:01:59.1]}
19... Nd5 {[%clk 0:01:52.3]} 20. a5 {[%clk 0:01:53.4]} 20... Qb4 {[%clk
0:01:25.3]} 21. axb6 {[%clk 0:01:47.8]} 21... axb6 {[%clk 0:01:22.4]} 22. Ra7
{[%clk 0:01:28.6]} 22... Ba8 {[%clk 0:01:07]} 23. Qf1 {[%clk 0:01:19.9]} 23...
Qc5 {[%clk 0:00:53.8]} 24. Nb3 {[%clk 0:00:58.7]} 24... Qf8 {[%clk 0:00:36.3]}
25. Ncd2 {[%clk 0:00:48.9]} 25... Rxc1 {[%clk 0:00:28.6]} 26. Qxc1 {[%clk
0:00:47.7]} 26... Rc8 {[%clk 0:00:29.2]} 27. Qa1 {[%clk 0:00:47.6]} 27... Nb4
{[%clk 0:00:28.9]} 28. Nd4 {[%clk 0:00:43.2]} 28... Bd5 {[%clk 0:00:26.4]} 29.
Bg3 {[%clk 0:00:41.2]} 29... h5 {[%clk 0:00:23.2]} 30. h4 {[%clk 0:00:40.7]}
30... Nc2 {[%clk 0:00:20.1]} 31. Qa4 {[%clk 0:00:28.8]} 31... Nxd4 {[%clk
0:00:18.4]} 32. exd4 {[%clk 0:00:29.7]} 32... Qe8 {[%clk 0:00:15.5]} 33. Qxe8+
{[%clk 0:00:28.9]} 33... Rxe8 {[%clk 0:00:15.6]} 34. Rd7 {[%clk 0:00:28.6]}
34... Be6 {[%clk 0:00:14.9]} 35. Rd6 {[%clk 0:00:28.4]} 35... f5 {[%clk
0:00:14.4]} 36. Be5 {[%clk 0:00:26.7]} 36... Bh6 {[%clk 0:00:13.2]} 37. Nc4
{[%clk 0:00:26.5]} 37... b5 {[%clk 0:00:10.5]} 38. Ne3 {[%clk 0:00:24.7]} 38...
f4 {[%clk 0:00:09.5]} 39. Nd5 {[%clk 0:00:21.8]} 39... Bxd5 {[%clk 0:00:10]} 40.
Rxd5 {[%clk 0:00:22.7]} 40... e3 {[%clk 0:00:10.9]} 41. fxe3 {[%clk 0:00:23.1]}
41... fxe3 {[%clk 0:00:11.8]} 42. Kf1 {[%clk 0:00:23.7]} 42... Rf8+ {[%clk
0:00:12.4]} 43. Ke2 {[%clk 0:00:24.1]} 43... Rf2+ {[%clk 0:00:12.4]} 44. Ke1
{[%clk 0:00:24.5]} 44... Rxb2 {[%clk 0:00:09.7]} 45. Rd8+ {[%clk 0:00:25]} 45...
Kf7 {[%clk 0:00:09.8]} 46. Rh8 {[%clk 0:00:24.9]} 46... Rxg2 {[%clk 0:00:03.6]}
47. Rxh6 {[%clk 0:00:24.4]} 47... b4 {[%clk 0:00:04.3]} 48. Rh7+ {[%clk
0:00:24.5]} 48... Ke6 {[%clk 0:00:04.9]} 49. Rb7 {[%clk 0:00:24.5]} 49... Rg4
{[%clk 0:00:05.2]} 50. Rxb4 {[%clk 0:00:23.6]} 50... Kd5 {[%clk 0:00:05.8]} 51.
Rb5+ {[%clk 0:00:23]} 51... Ke4 {[%clk 0:00:06.1]} 52. Bf6 {[%clk 0:00:22]}
52... Kf3 {[%clk 0:00:03.9]} 53. Rg5 {[%clk 0:00:19.5]} 53... Rxh4 {[%clk
0:00:02.6]} 54. Rf5+ {[%clk 0:00:15.7]} 54... gxf5 {[%clk 0:00:03.5]} 55. Bxh4
{[%clk 0:00:16.4]} 55... Ke4 {[%clk 0:00:03.9]} 56. Bf6 {[%clk 0:00:16.7]} 56...
f4 {[%clk 0:00:04.5]} 57. Bg5 {[%clk 0:00:14.6]} 57... f3 {[%clk 0:00:03.5]} 58.
d5 {[%clk 0:00:09.4]} 58... Kxd5 {[%clk 0:00:02]} 59. Bxe3 {[%clk 0:00:09.5]}
59... Ke4 {[%clk 0:00:02.9]} 60. Kf2 {[%clk 0:00:09.8]} 60... h4 {[%clk
0:00:02.6]} 61. Bg5 {[%clk 0:00:10.4]} 61... h3 {[%clk 0:00:03.2]} 62. Kg1
{[%clk 0:00:08.6]} 62... Kd3 {[%clk 0:00:02.7]} 63. Bh4 {[%clk 0:00:08.5]} 63...
Ke2 {[%clk 0:00:03]} 64. Kh2 {[%clk 0:00:08.7]} 64... f2 {[%clk 0:00:02.9]} 65.
Bxf2 {[%clk 0:00:08.3]} 65... Kxf2 {[%clk 0:00:03.8]} 66. Kxh3 {[%clk
0:00:08.9]} 1/2-1/2

[Event "*** SCC Grand Prix: Titled Tuesday Blitz"]
[Site "Chess.com"]
[Date "2020.06.09"]
[Round "10"]
[White "Tsyhanchuk_Stanislav"]
[Black "ZverevLev"]
[Result "0-1"]
[WhiteElo "2392"]
[BlackElo "2286"]
[TimeControl "180+1"]
[EndTime "10:58:49 PDT"]
[Termination "ZverevLev won by resignation"]

1. e4 {[%clk 0:02:57]} 1... c5 {[%clk 0:02:55.9]} 2. Nf3 {[%clk 0:02:56.6]} 2...
d6 {[%clk 0:02:52.8]} 3. d4 {[%clk 0:02:56.6]} 3... cxd4 {[%clk 0:02:52.6]} 4.
Nxd4 {[%clk 0:02:57.5]} 4... Nf6 {[%clk 0:02:52.1]} 5. Nc3 {[%clk 0:02:58.1]}
5... a6 {[%clk 0:02:51.7]} 6. Bg5 {[%clk 0:02:58.5]} 6... Nbd7 {[%clk
0:02:50.5]} 7. f4 {[%clk 0:02:58.5]} 7... Qc7 {[%clk 0:02:49.5]} 8. Qf3 {[%clk
0:02:56.5]} 8... h6 {[%clk 0:02:49.3]} 9. Bxf6 {[%clk 0:02:52.7]} 9... Nxf6
{[%clk 0:02:50.2]} 10. f5 {[%clk 0:02:52.9]} 10... Qc5 {[%clk 0:02:49.3]} 11.
O-O-O {[%clk 0:02:51.1]} 11... g5 {[%clk 0:02:49.1]} 12. fxg6 {[%clk 0:01:37.7]}
12... Bg4 {[%clk 0:02:43.5]} 13. gxf7+ {[%clk 0:01:37]} 13... Kxf7 {[%clk
0:02:44.4]} 14. Qd3 {[%clk 0:01:37.5]} 14... Bxd1 {[%clk 0:02:41.2]} 15. Qxd1
{[%clk 0:01:38.4]} 15... Bg7 {[%clk 0:02:36.2]} 16. Nb3 {[%clk 0:01:31.7]} 16...
Qe3+ {[%clk 0:02:33.9]} 17. Kb1 {[%clk 0:01:31.1]} 17... Nxe4 {[%clk 0:02:33.1]}
18. Bc4+ {[%clk 0:01:29.5]} 18... Ke8 {[%clk 0:02:30.6]} 19. Qh5+ {[%clk
0:01:26.2]} 19... Kd8 {[%clk 0:02:25.4]} 20. Nxe4 {[%clk 0:01:20.2]} 20... Qxe4
{[%clk 0:02:22.8]} 21. Qf7 {[%clk 0:01:07.2]} 21... Bf6 {[%clk 0:02:15.3]} 22.
Bd5 {[%clk 0:00:51.1]} 22... Qe5 {[%clk 0:02:12.4]} 23. c3 {[%clk 0:00:50.2]}
23... Kc7 {[%clk 0:02:04.3]} 24. Nd4 {[%clk 0:00:45.7]} 24... Kb6 {[%clk
0:01:59.6]} 25. Bf3 {[%clk 0:00:45.3]} 25... Rab8 {[%clk 0:01:38.1]} 26. Qb3+
{[%clk 0:00:31.2]} 26... Kc7 {[%clk 0:01:37.3]} 27. Qd1 {[%clk 0:00:30.9]} 27...
Qa5 {[%clk 0:01:30.5]} 28. Re1 {[%clk 0:00:28.6]} 28... e5 {[%clk 0:01:27.3]}
29. Ne6+ {[%clk 0:00:23.3]} 29... Kd7 {[%clk 0:01:25.8]} 30. Bg4 {[%clk
0:00:23.4]} 30... Ke7 {[%clk 0:01:25]} 31. Nf4 {[%clk 0:00:22.8]} 31... Rhg8
{[%clk 0:01:03.4]} 32. Nd5+ {[%clk 0:00:21.8]} 32... Qxd5 {[%clk 0:01:02.2]} 33.
Qxd5 {[%clk 0:00:20.8]} 33... Rxg4 {[%clk 0:01:02.6]} 34. Rf1 {[%clk 0:00:19.8]}
34... b5 {[%clk 0:00:56.4]} 35. Qf3 {[%clk 0:00:17.1]} 35... Rf4 {[%clk
0:00:54.4]} 36. Qe2 {[%clk 0:00:16.1]} 36... Rxf1+ {[%clk 0:00:53.8]} 37. Qxf1
{[%clk 0:00:16.4]} 37... d5 {[%clk 0:00:54.1]} 38. Qf5 {[%clk 0:00:15.8]} 38...
b4 {[%clk 0:00:50.1]} 39. Qh7+ {[%clk 0:00:15.3]} 39... Ke6 {[%clk 0:00:45.4]}
40. Qa7 {[%clk 0:00:14.9]} 40... Rg8 {[%clk 0:00:39.7]} 41. Qxa6+ {[%clk
0:00:14.1]} 41... Kf5 {[%clk 0:00:39.4]} 42. Qd3+ {[%clk 0:00:13.3]} 42... Ke6
{[%clk 0:00:37.9]} 43. cxb4 {[%clk 0:00:11]} 43... e4 {[%clk 0:00:35.2]} 44.
Qh3+ {[%clk 0:00:11.2]} 44... Kd6 {[%clk 0:00:35]} 45. b5 {[%clk 0:00:09.6]}
45... d4 {[%clk 0:00:28.5]} 46. Qxh6 {[%clk 0:00:08.9]} 46... Ke6 {[%clk
0:00:28.3]} 47. Qh3+ {[%clk 0:00:08.2]} 47... Ke7 {[%clk 0:00:23.3]} 48. Qa3+
{[%clk 0:00:08.1]} 48... Kd7 {[%clk 0:00:22.6]} 49. Qa7+ {[%clk 0:00:07.4]}
49... Ke6 {[%clk 0:00:22.5]} 50. Qb6+ {[%clk 0:00:07.5]} 50... Kf5 {[%clk
0:00:20.5]} 51. Qc5+ {[%clk 0:00:07.5]} 51... Kf4 {[%clk 0:00:20.5]} 52. Qd6+
{[%clk 0:00:07.2]} 52... Be5 {[%clk 0:00:19.9]} 53. Qh6+ {[%clk 0:00:07.4]}
53... Kf5 {[%clk 0:00:19.9]} 54. Qh7+ {[%clk 0:00:07.7]} 54... Rg6 {[%clk
0:00:19.1]} 55. h4 {[%clk 0:00:08.2]} 55... Kf6 {[%clk 0:00:16.4]} 56. Qh8+
{[%clk 0:00:07.5]} 56... Ke6 {[%clk 0:00:15.4]} 57. Qe8+ {[%clk 0:00:07.1]}
57... Kf5 {[%clk 0:00:14.5]} 58. Qf7+ {[%clk 0:00:06]} 58... Bf6 {[%clk
0:00:14.4]} 59. Qd7+ {[%clk 0:00:03.4]} 59... Kf4 {[%clk 0:00:13.6]} 60. Qc7+
{[%clk 0:00:03.7]} 60... Be5 {[%clk 0:00:12.4]} 61. b6 {[%clk 0:00:04.6]} 61...
Bxc7 {[%clk 0:00:10.7]} 62. bxc7 {[%clk 0:00:05.5]} 62... Rc6 {[%clk 0:00:10.7]}
63. h5 {[%clk 0:00:06.4]} 63... Rxc7 {[%clk 0:00:10.7]} 64. h6 {[%clk
0:00:07.3]} 64... e3 {[%clk 0:00:10.1]} 0-1

[Event "*** SCC Grand Prix: Titled Tuesday Blitz"]
[Site "Chess.com"]
[Date "2020.06.09"]
[Round "10"]
[White "kirillshevchenko"]
[Black "Igor_Lysyj"]
[Result "1-0"]
[WhiteElo "2910"]
[BlackElo "2747"]
[TimeControl "180+1"]
[EndTime "10:58:52 PDT"]
[Termination "kirillshevchenko won on time"]

1. e4 {[%clk 0:03:00.9]} 1... e5 {[%clk 0:02:59.7]} 2. Nf3 {[%clk 0:03:00.6]}
2... Nc6 {[%clk 0:02:59.8]} 3. Bb5 {[%clk 0:03:01.2]} 3... Nf6 {[%clk
0:02:59.9]} 4. O-O {[%clk 0:03:00.8]} 4... Nxe4 {[%clk 0:03:00.1]} 5. d4 {[%clk
0:03:01.3]} 5... Nd6 {[%clk 0:03:00.3]} 6. Bxc6 {[%clk 0:03:02]} 6... dxc6
{[%clk 0:03:00.4]} 7. dxe5 {[%clk 0:03:02.5]} 7... Nf5 {[%clk 0:03:00.7]} 8.
Qxd8+ {[%clk 0:03:02.4]} 8... Kxd8 {[%clk 0:03:01]} 9. Nc3 {[%clk 0:03:02.4]}
9... Be7 {[%clk 0:03:01.3]} 10. h3 {[%clk 0:02:59.5]} 10... Nh4 {[%clk
0:02:59.1]} 11. Nd4 {[%clk 0:02:57.5]} 11... Nf5 {[%clk 0:02:56]} 12. Nf3 {[%clk
0:02:42.2]} 12... Nh4 {[%clk 0:02:55.8]} 13. Nxh4 {[%clk 0:02:28.8]} 13... Bxh4
{[%clk 0:02:55.2]} 14. f4 {[%clk 0:02:29.7]} 14... Bf5 {[%clk 0:02:42.7]} 15.
Rd1+ {[%clk 0:02:23.6]} 15... Ke8 {[%clk 0:02:40.2]} 16. g4 {[%clk 0:02:24]}
16... Bd7 {[%clk 0:02:31.2]} 17. Ne4 {[%clk 0:02:12]} 17... b6 {[%clk
0:02:16.5]} 18. f5 {[%clk 0:02:00.2]} 18... c5 {[%clk 0:02:16.4]} 19. Bg5 {[%clk
0:01:43]} 19... Bxg5 {[%clk 0:02:00.1]} 20. Nxg5 {[%clk 0:01:43.9]} 20... Bc6
{[%clk 0:02:00.4]} 21. Kf2 {[%clk 0:01:42.7]} 21... h6 {[%clk 0:01:57.2]} 22.
Nf3 {[%clk 0:01:41.7]} 22... h5 {[%clk 0:01:51.3]} 23. Kg3 {[%clk 0:01:29.6]}
23... Ke7 {[%clk 0:01:37.9]} 24. Rd2 {[%clk 0:01:29]} 24... hxg4 {[%clk
0:01:17.9]} 25. hxg4 {[%clk 0:01:28.7]} 25... Rad8 {[%clk 0:01:17.9]} 26. Rad1
{[%clk 0:01:24.8]} 26... Rxd2 {[%clk 0:01:15.5]} 27. Rxd2 {[%clk 0:01:25.7]}
27... Rh1 {[%clk 0:01:01.6]} 28. b3 {[%clk 0:01:01.6]} 28... Rf1 {[%clk
0:00:55.1]} 29. Nh4 {[%clk 0:00:54.7]} 29... Rg1+ {[%clk 0:00:50.1]} 30. Kf4
{[%clk 0:00:53.6]} 30... Rf1+ {[%clk 0:00:50.2]} 31. Ke3 {[%clk 0:00:52]} 31...
Re1+ {[%clk 0:00:48.9]} 32. Re2 {[%clk 0:00:51.4]} 32... Rh1 {[%clk 0:00:47.4]}
33. Ng2 {[%clk 0:00:42]} 33... Rh3+ {[%clk 0:00:42.5]} 34. Kf4 {[%clk
0:00:42.1]} 34... a5 {[%clk 0:00:34.9]} 35. Ne3 {[%clk 0:00:26.7]} 35... Rh1
{[%clk 0:00:16.5]} 36. g5 {[%clk 0:00:25.7]} 36... g6 {[%clk 0:00:16]} 37. e6
{[%clk 0:00:22.2]} 37... Rh4+ {[%clk 0:00:12.5]} 38. Kg3 {[%clk 0:00:16.6]}
38... Rh1 {[%clk 0:00:12.6]} 39. exf7 {[%clk 0:00:13.5]} 39... Kxf7 {[%clk
0:00:12.8]} 40. f6 {[%clk 0:00:14]} 40... Rg1+ {[%clk 0:00:11]} 41. Kf4 {[%clk
0:00:14.2]} 41... Rh1 {[%clk 0:00:10.5]} 42. Ng4 {[%clk 0:00:14.3]} 42... Rf1+
{[%clk 0:00:10.5]} 43. Rf2 {[%clk 0:00:12.3]} 43... Rxf2+ {[%clk 0:00:10.2]} 44.
Nxf2 {[%clk 0:00:13.2]} 44... Bd7 {[%clk 0:00:10.2]} 45. Nd3 {[%clk 0:00:11.5]}
45... Bf5 {[%clk 0:00:09.4]} 46. Ne5+ {[%clk 0:00:11.5]} 46... Ke6 {[%clk
0:00:09.5]} 47. c3 {[%clk 0:00:11]} 47... Bb1 {[%clk 0:00:09.4]} 48. a3 {[%clk
0:00:10.9]} 48... Bc2 {[%clk 0:00:09.7]} 49. b4 {[%clk 0:00:03.2]} 49... cxb4
{[%clk 0:00:09.3]} 50. cxb4 {[%clk 0:00:03.1]} 50... axb4 {[%clk 0:00:08.8]} 51.
axb4 {[%clk 0:00:04]} 51... c5 {[%clk 0:00:09.1]} 52. bxc5 {[%clk 0:00:01.8]}
52... bxc5 {[%clk 0:00:09.1]} 53. Nc4 {[%clk 0:00:02.1]} 53... Bf5 {[%clk
0:00:08.9]} 54. Ne3 {[%clk 0:00:02.1]} 54... Bd3 {[%clk 0:00:08.6]} 55. Nd1
{[%clk 0:00:02.2]} 55... Bf5 {[%clk 0:00:07.8]} 56. Nc3 {[%clk 0:00:02.6]} 56...
Bd3 {[%clk 0:00:07.5]} 57. Ke3 {[%clk 0:00:02]} 57... Bf5 {[%clk 0:00:06.9]} 58.
Ne4 {[%clk 0:00:02.5]} 58... c4 {[%clk 0:00:04.7]} 59. Kd4 {[%clk 0:00:02.9]}
59... c3 {[%clk 0:00:03.7]} 60. Nxc3 {[%clk 0:00:02.7]} 60... Bc2 {[%clk
0:00:03.6]} 61. Ne4 {[%clk 0:00:02]} 61... Bb1 {[%clk 0:00:02.7]} 62. Ke3 {[%clk
0:00:02.2]} 62... Ba2 {[%clk 0:00:02.7]} 63. Kf4 {[%clk 0:00:02.6]} 1-0

[Event "*** SCC Grand Prix: Titled Tuesday Blitz"]
[Site "Chess.com"]
[Date "2020.06.09"]
[Round "10"]
[White "sergiochess83"]
[Black "Evgeny81"]
[Result "0-1"]
[WhiteElo "2835"]
[BlackElo "2785"]
[TimeControl "180+1"]
[EndTime "10:58:53 PDT"]
[Termination "Evgeny81 won by resignation"]

1. e4 {[%clk 0:03:00.9]} 1... e5 {[%clk 0:02:58.8]} 2. Nf3 {[%clk 0:03:00.5]}
2... Nc6 {[%clk 0:02:59.3]} 3. Bb5 {[%clk 0:02:59.9]} 3... a6 {[%clk 0:02:59.3]}
4. Ba4 {[%clk 0:02:59.9]} 4... Nf6 {[%clk 0:02:59.7]} 5. O-O {[%clk 0:03:00.1]}
5... Be7 {[%clk 0:03:00]} 6. Re1 {[%clk 0:03:00.1]} 6... b5 {[%clk 0:03:00.3]}
7. Bb3 {[%clk 0:03:00.2]} 7... d6 {[%clk 0:03:00.8]} 8. c3 {[%clk 0:03:00.4]}
8... Na5 {[%clk 0:03:01]} 9. Bc2 {[%clk 0:02:57.9]} 9... c5 {[%clk 0:03:01.3]}
10. d4 {[%clk 0:02:56.4]} 10... Qc7 {[%clk 0:03:01.7]} 11. Nbd2 {[%clk
0:02:50.6]} 11... O-O {[%clk 0:03:01.4]} 12. h3 {[%clk 0:02:41.9]} 12... Be6
{[%clk 0:02:58.2]} 13. d5 {[%clk 0:02:36.3]} 13... Bd7 {[%clk 0:02:58.2]} 14.
Nf1 {[%clk 0:02:33.2]} 14... Rfb8 {[%clk 0:02:54]} 15. b3 {[%clk 0:02:30]} 15...
c4 {[%clk 0:02:52.1]} 16. b4 {[%clk 0:02:28]} 16... Nb7 {[%clk 0:02:52.6]} 17.
Be3 {[%clk 0:02:11.5]} 17... Ne8 {[%clk 0:02:46.4]} 18. a4 {[%clk 0:02:04.6]}
18... g6 {[%clk 0:02:42.9]} 19. g4 {[%clk 0:01:49.6]} 19... Nd8 {[%clk
0:02:39.7]} 20. Qd2 {[%clk 0:01:45.8]} 20... f6 {[%clk 0:02:38.3]} 21. Ng3
{[%clk 0:01:45.2]} 21... Nf7 {[%clk 0:02:38.3]} 22. Kh2 {[%clk 0:01:41.1]} 22...
Ng7 {[%clk 0:02:37.6]} 23. Rg1 {[%clk 0:01:15.2]} 23... Kh8 {[%clk 0:02:36.5]}
24. Ra2 {[%clk 0:00:45]} 24... Qc8 {[%clk 0:02:29.1]} 25. Rga1 {[%clk
0:00:39.5]} 25... Qe8 {[%clk 0:02:19.3]} 26. Qd1 {[%clk 0:00:31]} 26... h5
{[%clk 0:02:04]} 27. Nh4 {[%clk 0:00:28.1]} 27... Kh7 {[%clk 0:01:48.8]} 28.
axb5 {[%clk 0:00:28]} 28... axb5 {[%clk 0:01:48.5]} 29. gxh5 {[%clk 0:00:22.9]}
29... g5 {[%clk 0:01:46.4]} 30. Ng6 {[%clk 0:00:22.9]} 30... Rxa2 {[%clk
0:01:38.9]} 31. Rxa2 {[%clk 0:00:22.9]} 31... Bd8 {[%clk 0:01:29.8]} 32. Ra7
{[%clk 0:00:21.2]} 32... Kg8 {[%clk 0:01:22.8]} 33. h4 {[%clk 0:00:17.9]} 33...
Nh6 {[%clk 0:01:03.4]} 34. hxg5 {[%clk 0:00:14.6]} 34... fxg5 {[%clk 0:00:58.4]}
35. f3 {[%clk 0:00:11.5]} 35... Nxh5 {[%clk 0:00:49.7]} 36. Nxh5 {[%clk
0:00:08.2]} 36... Qxg6 {[%clk 0:00:49.9]} 37. Ng3 {[%clk 0:00:06.6]} 37... Bc8
{[%clk 0:00:32.2]} 38. Qa1 {[%clk 0:00:06.7]} 38... g4 {[%clk 0:00:25.7]} 39. f4
{[%clk 0:00:07.1]} 39... exf4 {[%clk 0:00:20.8]} 40. Bxf4 {[%clk 0:00:08]} 40...
Bg5 {[%clk 0:00:21.1]} 41. Qc1 {[%clk 0:00:07.9]} 41... Nf7 {[%clk 0:00:11]} 42.
Kg1 {[%clk 0:00:06.9]} 42... Bxf4 {[%clk 0:00:09]} 43. Qxf4 {[%clk 0:00:07.8]}
43... Ne5 {[%clk 0:00:09.2]} 44. Bd1 {[%clk 0:00:08.3]} 44... Bd7 {[%clk
0:00:09.1]} 45. Be2 {[%clk 0:00:07]} 45... Rf8 {[%clk 0:00:09.2]} 46. Qe3 {[%clk
0:00:07]} 46... Qf6 {[%clk 0:00:08.8]} 47. Kg2 {[%clk 0:00:06.5]} 47... Qg6
{[%clk 0:00:08]} 48. Ra6 {[%clk 0:00:05.1]} 48... Rf7 {[%clk 0:00:06.8]} 49.
Ra8+ {[%clk 0:00:04.9]} 49... Kg7 {[%clk 0:00:06.7]} 50. Ra7 {[%clk 0:00:05.8]}
50... Qh6 {[%clk 0:00:04.5]} 51. Qxh6+ {[%clk 0:00:05.5]} 51... Kxh6 {[%clk
0:00:05.4]} 52. Ra6 {[%clk 0:00:05.1]} 52... Rf6 {[%clk 0:00:05.5]} 53. Rb6
{[%clk 0:00:05.6]} 53... Kg5 {[%clk 0:00:05.7]} 54. Nf1 {[%clk 0:00:05.8]} 54...
Kf4 {[%clk 0:00:05.3]} 55. Ng3 {[%clk 0:00:05.4]} 55... Ke3 {[%clk 0:00:04.7]}
56. Rb7 {[%clk 0:00:05.8]} 56... Kd2 {[%clk 0:00:04.4]} 57. Nh5 {[%clk
0:00:03.6]} 57... Rh6 {[%clk 0:00:03.8]} 58. Nf4 {[%clk 0:00:03.9]} 58... Kxc3
{[%clk 0:00:02.8]} 59. Kg3 {[%clk 0:00:02.2]} 59... Kxb4 {[%clk 0:00:02.9]} 60.
Rc7 {[%clk 0:00:03.1]} 60... Kc3 {[%clk 0:00:02.7]} 61. Ne6 {[%clk 0:00:04]}
61... Bxe6 {[%clk 0:00:02.6]} 62. dxe6 {[%clk 0:00:04.9]} 62... Rxe6 {[%clk
0:00:03]} 63. Bxc4 {[%clk 0:00:05.8]} 63... Nxc4 {[%clk 0:00:02.4]} 64. Rd7
{[%clk 0:00:05.9]} 64... Rxe4 {[%clk 0:00:02.1]} 0-1